[Event "Krakow Championship-B 2022"]
[Site "Krakow"]
[Date "2022.07.01"]
[Round "8.2"]
[White "Skomial, Mateusz"]
[Black "Cichon, Jakub"]
[Result "1-0"]
[ECO "B51"]
[WhiteElo "2063"]
[BlackElo "1884"]
[Annotator "NA RC"]
[PlyCount "89"]
[EventDate "2022.06.25"]
[EventType "swiss"]
[EventCountry "POL"]
[SourceTitle "playchess.com"]
[Source "ChessBase"]
[SourceQuality "1"]
[TimeControl "40/5400+30:1800+30"]

1. e4 {[%emt 0:00:03]} c5 {[%emt 0:00:49]} 2. Nf3 {[%emt 0:00:15]} d6 {[%emt 0:00:09]} 3. Bb5+ {[%emt 0:00:38]} Nd7 {[%emt 0:00:20]} 4. c4 {[%emt 0:02:18]} Ngf6 {[%emt 0:03:40]} 5. Nc3 {[%emt 0:01:28]} a6 {[%emt 0:01:30]} 6. Ba4 {[%emt 0:01:06]} g6 {[%emt 0:03:31]} 7. d4 {[%emt 0:05:37]} cxd4 {[%emt 0:00:53]} 8. Nxd4 {[%emt 0:00:19]} Bg7 {[%emt 0:01:39]} 9. O-O {[%emt 0:01:42]} O-O {[%emt 0:00:10]} 10. h3 {[%emt 0:07:38]} Nb6 {[%emt 0:12:56]} 11. Bb3 {[%emt 0:01:57]} Qc7 {[%emt 0:01:07]} 12. Qe2 {[%emt 0:00:21]} Nfd7 {[%emt 0:16:21]} 13. Be3 {[%emt 0:03:39]} Nc5 {[%emt 0:01:54]} 14. Rac1 {[%emt 0:01:49]} Nxb3 {[%emt 0:04:46]} 15. axb3 {[%emt 0:00:08]} e6 {[%emt 0:01:56]} 16. Rfd1 {[%emt 0:01:11]} Bd7 {[%emt 0:09:08]} 17. Qd2 {[%emt 0:06:00]} Nc8 {[%emt 0:11:53]} 18. Nf3 {[%emt 0:07:41]} Rd8 {[%emt 0:02:53]} 19. Bg5 {[%emt 0:09:36]} f6 {[%emt 0:00:23]} 20. Bf4 {[%emt 0:04:52]} Bc6 {[%emt 0:03:02]} 21. Be3 {[%emt 0:06:05]} Ne7 {[%emt 0:06:59]} 22. b4 {[%emt 0:03:12]} Be8 {[%emt 0:02:27]} 23. b3 {[%emt 0:00:12]} Rac8 {[%emt 0:05:01]} 24. Nd4 {[%emt 0:06:55]} Bf7 {[%emt 0:03:19]} 25. b5 {[%emt 0:00:10]} f5 {[%emt 0:01:14]} 26. Bg5 {[%emt 0:03:58]} Rd7 {[%emt 0:01:11]} 27. Nf3 {[%emt 0:03:33]} Bf8 {[%emt 0:01:34]} 28. Ne5 {[%emt 0:03:09]} Rdd8 {[%emt 0:00:51]} 29. Nxf7 {[%emt 0:00:09]} Kxf7 {[%emt 0:00:06]} 30. exf5 {[%emt 0:01:02]} gxf5 {[%emt 0:00:13]} 31. Qe2 {[%emt 0:03:28]} Bg7 {[%emt 0:01:53]} 32. Re1 {[%emt 0:03:18]} Qd7 {[%emt 0:00:37]} 33. Na4 {[%emt 0:00:25]} Bd4 {[%emt 0:00:51]} 34. Qh5+ {[%emt 0:00:56]} Ng6 {[%emt 0:01:10]} 35. Bxd8 {[%emt 0:01:55]} Rxd8 {[%emt 0:00:31]} 36. Rcd1 {[%emt 0:00:14]} Bg7 {[%emt 0:00:36]} 37. Nc5 {[%emt 0:00:15]} dxc5 {[%emt 0:00:49]} 38. Rxd7+ {[%emt 0:00:04]} Rxd7 {[%emt 0:00:03]} 39. Rd1 {[%emt 0:01:32]} Rc7 {[%emt 0:00:32]} 40. b6 {[%emt 0:00:46]} Re7 {[%emt 0:00:20]} 41. Qxh7 {[%emt 0:31:21]} Nf4 {[%emt 0:30:40]} 42. Rd8 {[%emt 0:03:59]} Ne2+ {[%emt 0:00:36]} 43. Kf1 {[%emt 0:00:07]} Nd4 {[%emt 0:00:15]} 44. Rg8 Kf6 {[%emt 0:00:18]} 45. Qh4+ {[%emt 0:00:15]} 1-0

[Event "Krakow Championship-B 2022"]
[Site "Krakow"]
[Date "2022.07.01"]
[Round "8.3"]
[White "Garsky, Vladyslav"]
[Black "Stemmler, Fabian"]
[Result "1-0"]
[ECO "A04"]
[WhiteElo "1860"]
[BlackElo "2054"]
[Annotator "NA RC"]
[PlyCount "119"]
[EventDate "2022.06.25"]
[EventType "swiss"]
[EventCountry "POL"]
[SourceTitle "playchess.com"]
[Source "ChessBase"]
[SourceQuality "1"]
[TimeControl "40/5400+30:1800+30"]

1. Nf3 {[%emt 0:00:02]} f5 {[%emt 0:02:45]} 2. c4 {[%emt 0:03:07]} Nf6 {[%emt 0:00:21]} 3. Nc3 {[%emt 0:00:16]} e6 {[%emt 0:01:36]} 4. g3 {[%emt 0:04:16]} b6 {[%emt 0:02:47]} 5. Bg2 {[%emt 0:00:07]} Bb7 {[%emt 0:00:01]} 6. O-O {[%emt 0:00:10]} Be7 {[%emt 0:00:31]} 7. d3 {[%emt 0:00:49]} O-O {[%emt 0:00:57]} 8. Qc2 {[%emt 0:00:08]} Nc6 {[%emt 0:14:10]} 9. a3 {[%emt 0:04:56]} Qe8 {[%emt 0:11:25]} 10. e4 {[%emt 0:02:28]} fxe4 {[%emt 0:02:21]} 11. dxe4 {[%emt 0:00:07]} Qh5 {[%emt 0:03:10]} 12. h3 {[%emt 0:09:20]} h6 {[%emt 0:17:53]} 13. Be3 {[%emt 0:03:05]} Nh7 {[%emt 0:07:55]} 14. Qd1 {[%emt 0:05:25]} d6 {[%emt 0:06:04]} 15. Nd4 {[%emt 0:02:01]} Qxd1 {[%emt 0:00:41]} 16. Rfxd1 {[%emt 0:01:19]} Nxd4 {[%emt 0:00:36]} 17. Bxd4 {[%emt 0:00:08]} e5 {[%emt 0:02:09]} 18. Be3 {[%emt 0:00:02]} Bg5 {[%emt 0:00:14]} 19. Nd5 {[%emt 0:04:51]} Bxe3 {[%emt 0:01:08]} 20. Nxe3 {[%emt 0:00:11]} Ng5 {[%emt 0:05:36]} 21. Nd5 {[%emt 0:00:12]} Ne6 {[%emt 0:01:52]} 22. Nc3 {[%emt 0:00:21]} a6 {[%emt 0:02:28]} 23. Rd2 {[%emt 0:01:54]} Nd4 {[%emt 0:00:42]} 24. Re1 {[%emt 0:00:20]} c5 {[%emt 0:01:16]} 25. Ne2 {[%emt 0:01:13]} Rac8 {[%emt 0:01:01]} 26. f4 {[%emt 0:00:29]} Kf7 {[%emt 0:02:48]} 27. Kh2 {[%emt 0:01:49]} Ke7 {[%emt 0:00:44]} 28. f5 {[%emt 0:01:33]} Bc6 {[%emt 0:02:42]} 29. g4 {[%emt 0:02:09]} a5 {[%emt 0:02:02]} 30. Kg3 {[%emt 0:00:52]} b5 {[%emt 0:00:53]} 31. cxb5 {[%emt 0:01:36]} Bxb5 {[%emt 0:01:02]} 32. Nc3 {[%emt 0:00:09]} Bc6 {[%emt 0:00:22]} 33. Bf1 {[%emt 0:02:15]} Rb8 {[%emt 0:00:27]} 34. Bc4 {[%emt 0:00:06]} Rb7 {[%emt 0:03:30]} 35. Rf1 {[%emt 0:00:05]} Rfb8 {[%emt 0:02:01]} 36. Rff2 {[%emt 0:00:06]} Rf8 {[%emt 0:01:05]} 37. h4 {[%emt 0:00:15]} Rbb8 {[%emt 0:00:34]} 38. g5 {[%emt 0:00:26]} hxg5 {[%emt 0:00:40]} 39. hxg5 {[%emt 0:00:01]} Rh8 {[%emt 0:00:36]} 40. Rh2 {[%emt 0:01:10]} Rbf8 {[%emt 0:00:39]} 41. Rdf2 {[%emt 0:30:58]} Bd7 {[%emt 0:18:49]} 42. Nd5+ {[%emt 0:00:00]} Kd8 {[%emt 0:00:20]} 43. g6 {[%emt 0:00:00]} Be8 {[%emt 0:07:42]} 44. Nc3 {[%emt 0:00:00]} Bd7 {[%emt 0:01:56]} 45. Kg4 {[%emt 0:00:00]} Bc8 {[%emt 0:01:56]} 46. Rh7 {[%emt 0:00:00]} Rxh7 {[%emt 0:00:32]} 47. gxh7 {[%emt 0:00:00]} Rh8 {[%emt 0:00:13]} 48. Bg8 {[%emt 0:00:00]} Nc6 {[%emt 0:00:46]} 49. Nd5 {[%emt 0:00:00]} Ne7 {[%emt 0:00:09]} 50. Nxe7 {[%emt 0:00:00]} Kxe7 {[%emt 0:00:06]} 51. Kg5 {[%emt 0:00:00]} Bd7 {[%emt 0:01:39]} 52. f6+ {[%emt 0:00:00]} gxf6+ {[%emt 0:00:58]} 53. Kg6 {[%emt 0:00:00]} Be6 {[%emt 0:01:07]} 54. Kg7 {[%emt 0:01:30]} Rxg8+ {[%emt 0:00:23]} 55. hxg8=Q {[%emt 0:00:08]} Bxg8 {[%emt 0:00:06]} 56. Kxg8 {[%emt 0:00:03]} d5 {[%emt 0:00:27]} 57. exd5 {[%emt 0:00:03]} Kd6 {[%emt 0:00:04]} 58. Kf7 {[%emt 0:00:31]} Kxd5 {[%emt 0:00:26]} 59. Kxf6 {[%emt 0:00:06]} e4 {[%emt 0:00:12]} 60. Kf5 {[%emt 0:00:20]} 1-0

[Event "Krakow Championship-B 2022"]
[Site "Krakow"]
[Date "2022.07.01"]
[Round "8.4"]
[White "Czaplak, Lukasz"]
[Black "Duncan, Patrick C M"]
[Result "1/2-1/2"]
[ECO "B10"]
[WhiteElo "1905"]
[BlackElo "2013"]
[Annotator "NA RC"]
[PlyCount "109"]
[EventDate "2022.06.25"]
[EventType "swiss"]
[EventCountry "POL"]
[SourceTitle "playchess.com"]
[Source "ChessBase"]
[SourceQuality "1"]
[TimeControl "40/5400+30:1800+30"]

1. e4 {[%emt 0:00:02]} c6 {[%emt 0:00:09]} 2. Nf3 {[%emt 0:00:05]} d5 {[%emt 0:00:10]} 3. exd5 {[%emt 0:00:05]} cxd5 {[%emt 0:00:14]} 4. Ne5 {[%emt 0:00:05]} Nf6 {[%emt 0:01:08]} 5. d4 {[%emt 0:00:15]} g6 {[%emt 0:01:04]} 6. c3 {[%emt 0:02:30]} Bg7 {[%emt 0:00:57]} 7. Bd3 {[%emt 0:02:22]} O-O {[%emt 0:00:37]} 8. Qe2 {[%emt 0:01:29]} Nc6 {[%emt 0:02:22]} 9. f4 {[%emt 0:08:32]} Qc7 {[%emt 0:08:14]} 10. Be3 {[%emt 0:04:15]} a6 {[%emt 0:09:24]} 11. Nd2 {[%emt 0:04:33]} b5 {[%emt 0:02:43]} 12. O-O {[%emt 0:15:19]} Ne8 {[%emt 0:01:55]} 13. Nxc6 {[%emt 0:01:31]} Qxc6 {[%emt 0:00:14]} 14. f5 {[%emt 0:02:22]} Bxf5 {[%emt 0:09:29]} 15. Bxf5 {[%emt 0:00:07]} gxf5 {[%emt 0:00:11]} 16. Rxf5 {[%emt 0:00:29]} e6 {[%emt 0:27:37]} 17. Rh5 {[%emt 0:03:46]} f5 {[%emt 0:05:12]} 18. Bg5 {[%emt 0:05:33]} Nf6 {[%emt 0:03:07]} 19. Bxf6 {[%emt 0:03:43]} Rxf6 {[%emt 0:03:17]} 20. Rh3 {[%emt 0:15:14]} Qd6 {[%emt 0:04:16]} 21. a3 {[%emt 0:05:42]} Rg6 {[%emt 0:01:43]} 22. Re1 {[%emt 0:01:07]} Rf8 {[%emt 0:04:17]} 23. Nf3 {[%emt 0:02:22]} Qf4 {[%emt 0:01:34]} 24. Rh4 {[%emt 0:03:30]} Qd6 {[%emt 0:00:28]} 25. Ne5 {[%emt 0:03:02]} Bxe5 {[%emt 0:00:19]} 26. Qxe5 {[%emt 0:00:27]} Qxe5 {[%emt 0:00:24]} 27. Rxe5 {[%emt 0:00:02]} a5 {[%emt 0:04:56]} 28. Rh3 {[%emt 0:00:16]} Rc8 {[%emt 0:01:39]} 29. Rhe3 {[%emt 0:01:07]} Kf7 {[%emt 0:00:12]} 30. Kf2 {[%emt 0:00:39]} Rc6 {[%emt 0:02:40]} 31. Re1 {[%emt 0:03:00]} Rg4 {[%emt 0:01:12]} 32. R5e3 {[%emt 0:00:23]} b4 {[%emt 0:01:29]} 33. axb4 {[%emt 0:00:29]} axb4 {[%emt 0:00:08]} 34. Ra1 {[%emt 0:00:50]} Rc7 {[%emt 0:01:24]} 35. Ra6 {[%emt 0:00:55]} Re4 {[%emt 0:00:07]} 36. Rh3 {[%emt 0:01:59]} Kg7 {[%emt 0:00:17]} 37. Rg3+ {[%emt 0:00:58]} Kf6 {[%emt 0:00:24]} 38. Rh3 {[%emt 0:01:56]} bxc3 {[%emt 0:00:35]} 39. bxc3 {[%emt 0:00:12]} Kg6 {[%emt 0:01:22]} 40. Rg3+ {[%emt 0:03:40]} Kf6 {[%emt 0:00:26]} 41. Ra8 {[%emt 0:31:57]} Rg4 {[%emt 0:10:49]} 42. Re3 {[%emt 0:00:00]} Rcg7 {[%emt 0:04:03]} 43. g3 {[%emt 0:00:00]} Rc7 {[%emt 0:00:51]} 44. Rf8+ {[%emt 0:00:00]} Rf7 {[%emt 0:00:40]} 45. Rxf7+ {[%emt 0:00:00]} Kxf7 {[%emt 0:00:07]} 46. Re2 {[%emt 0:00:00]} Rg8 {[%emt 0:01:26]} 47. Rb2 {[%emt 0:00:00]} Rc8 {[%emt 0:00:30]} 48. Rb3 {[%emt 0:00:00]} Kf6 {[%emt 0:01:59]} 49. Kf3 {[%emt 0:00:00]} Rc4 {[%emt 0:02:46]} 50. Ra3 {[%emt 0:00:00]} h6 {[%emt 0:02:01]} 51. h3 Kg5 {[%emt 0:01:54]} 52. h4+ {[%emt 0:00:00]} Kf6 {[%emt 0:00:22]} 53. Ke3 {[%emt 0:00:00]} Rc7 {[%emt 0:01:39]} 54. Kf4 {[%emt 0:00:00]} Rc4 {[%emt 0:00:45]} 55. Ke3 {[%emt 0:00:00]} 1/2-1/2

[Event "Krakow Championship-B 2022"]
[Site "Krakow"]
[Date "2022.07.01"]
[Round "8.5"]
[White "Malik, Maciej"]
[Black "Khandhar, Kaushal"]
[Result "1/2-1/2"]
[ECO "C11"]
[WhiteElo "1984"]
[BlackElo "1936"]
[Annotator "RC"]
[PlyCount "165"]
[EventDate "2022.06.25"]
[EventType "swiss"]
[EventCountry "POL"]
[SourceTitle "playchess.com"]
[Source "ChessBase"]
[SourceQuality "1"]
[TimeControl "40/5400+30:1800+30"]

1. e4 {[%emt 0:00:04]} e6 {[%emt 0:02:43]} 2. Nf3 {[%emt 0:00:11]} d5 {[%emt 0:00:04]} 3. Nc3 {[%emt 0:00:07]} dxe4 {[%emt 0:08:08]} 4. Nxe4 {[%emt 0:01:15]} Nd7 {[%emt 0:00:03]} 5. d4 {[%emt 0:00:43]} Ngf6 {[%emt 0:00:05]} 6. Bd3 {[%emt 0:00:37]} Nxe4 {[%emt 0:04:38]} 7. Bxe4 {[%emt 0:00:07]} Nf6 {[%emt 0:00:03]} 8. Bg5 {[%emt 0:00:11]} Be7 {[%emt 0:00:51]} 9. Bxf6 {[%emt 0:00:07]} gxf6 {[%emt 0:03:42]} 10. Qe2 {[%emt 0:01:24]} c6 {[%emt 0:00:43]} 11. O-O-O {[%emt 0:01:39]} Qc7 {[%emt 0:01:25]} 12. Kb1 {[%emt 0:05:41]} Bd7 {[%emt 0:22:33]} 13. Rhe1 {[%emt 0:02:51]} O-O-O {[%emt 0:00:27]} 14. h3 {[%emt 0:04:18]} Bd6 {[%emt 0:06:31]} 15. Nd2 {[%emt 0:01:56]} Kb8 {[%emt 0:04:44]} 16. Bf3 {[%emt 0:09:50]} Bc8 {[%emt 0:01:38]} 17. Ne4 {[%emt 0:01:09]} Bb4 {[%emt 0:01:14]} 18. c3 {[%emt 0:00:38]} Be7 {[%emt 0:00:19]} 19. Qc4 {[%emt 0:01:38]} b6 {[%emt 0:03:16]} 20. Ng3 {[%emt 0:06:03]} Bb7 {[%emt 0:01:22]} 21. Qe2 {[%emt 0:01:09]} Rd7 {[%emt 0:02:53]} 22. Qe3 {[%emt 0:07:43]} Rhd8 {[%emt 0:08:14]} 23. Re2 {[%emt 0:11:04]} c5 {[%emt 0:04:26]} 24. Red2 {[%emt 0:04:22]} cxd4 {[%emt 0:03:20]} 25. cxd4 {[%emt 0:00:07]} Bxf3 {[%emt 0:07:53]} 26. Qxf3 {[%emt 0:00:09]} Qb7 {[%emt 0:00:02]} 27. Qxb7+ {[%emt 0:06:33]} Kxb7 {[%emt 0:00:21]} 28. Kc2 {[%emt 0:01:26]} Rd5 {[%emt 0:05:11]} 29. Ne2 {[%emt 0:00:52]} a6 {[%emt 0:03:09]} 30. Nc3 {[%emt 0:01:36]} R5d7 {[%emt 0:00:48]} 31. a3 {[%emt 0:02:56]} f5 {[%emt 0:01:22]} 32. d5 {[%emt 0:01:50]} Bf6 {[%emt 0:01:25]} 33. dxe6 {[%emt 0:02:44]} Rxd2+ {[%emt 0:00:11]} 34. Rxd2 {[%emt 0:00:05]} Rxd2+ {[%emt 0:00:06]} 35. Kxd2 {[%emt 0:00:05]} fxe6 {[%emt 0:00:16]} 36. Nd1 {[%emt 0:00:45]} Kc6 {[%emt 0:00:34]} 37. Kd3 {[%emt 0:00:37]} Kd5 {[%emt 0:01:59]} 38. Ne3+ {[%emt 0:00:51]} Kc5 {[%emt 0:00:38]} 39. b3 {[%emt 0:01:07]} b5 {[%emt 0:01:10]} 40. g4 {[%emt 0:01:13]} fxg4 {[%emt 0:00:33]} 41. hxg4 {[%emt 0:30:11]} Bb2 {[%emt 0:30:42]} 42. Nc2 {[%emt 0:04:47]} a5 {[%emt 0:00:00]} 43. b4+ {[%emt 0:00:00]} axb4 {[%emt 0:00:00]} 44. axb4+ {[%emt 0:00:00]} Kd5 {[%emt 0:00:00]} 45. f4 {[%emt 0:00:00]} Bc1 {[%emt 0:00:00]} 46. Ne3+ {[%emt 0:00:00]} Kd6 {[%emt 0:00:00]} 47. Ke4 {[%emt 0:00:00]} Bd2 {[%emt 0:00:00]} 48. Nc2 {[%emt 0:00:00]} Ke7 {[%emt 0:00:00]} 49. Nd4 {[%emt 0:00:00]} Kf7 {[%emt 0:01:23]} 50. Nc6 {[%emt 0:00:00]} Kf6 {[%emt 0:00:53]} 51. g5+ {[%emt 0:00:00]} Kf7 {[%emt 0:01:45]} 52. Ke5 {[%emt 0:00:00]} Bc3+ {[%emt 0:01:27]} 53. Kd6 {[%emt 0:00:00]} Bd2 {[%emt 0:00:04]} 54. Ne5+ {[%emt 0:00:00]} Kg7 {[%emt 0:00:23]} 55. Nd3 {[%emt 0:00:00]} Kf7 {[%emt 0:00:35]} 56. Kc5 {[%emt 0:00:00]} Kg6 {[%emt 0:00:46]} 57. Kxb5 {[%emt 0:00:00]} Kf5 {[%emt 0:00:08]} 58. Kc4 {[%emt 0:00:00]} Ke4 {[%emt 0:00:29]} 59. b5 {[%emt 0:00:00]} Ba5 {[%emt 0:01:05]} 60. Nc5+ {[%emt 0:00:00]} Kxf4 {[%emt 0:00:07]} 61. Nxe6+ {[%emt 0:00:00]} Ke5 {[%emt 0:00:40]} 62. Nf8 {[%emt 0:00:00]} Kf5 {[%emt 0:00:06]} 63. Nxh7 {[%emt 0:00:00]} Kg6 {[%emt 0:00:01]} 64. Nf8+ {[%emt 0:00:00]} Kxg5 {[%emt 0:00:03]} 65. Kc5 {[%emt 0:00:00]} Kf6 {[%emt 0:00:45]} 66. Nd7+ {[%emt 0:00:00]} Ke7 {[%emt 0:00:55]} 67. Nb8 {[%emt 0:00:00]} Be1 {[%emt 0:00:42]} 68. Kc6 {[%emt 0:00:00]} Bf2 {[%emt 0:00:57]} 69. Kc7 {[%emt 0:00:00]} Bg3+ {[%emt 0:00:49]} 70. Kb7 {[%emt 0:00:00]} Bf2 {[%emt 0:00:14]} 71. Kc6 {[%emt 0:01:53]} Kd8 {[%emt 0:00:30]} 72. Nd7 {[%emt 0:00:35]} Kc8 {[%emt 0:00:26]} 73. Nb6+ {[%emt 0:00:41]} Kb8 {[%emt 0:00:09]} 74. Nd5 {[%emt 0:00:23]} Bg1 {[%emt 0:00:20]} 75. Nc3 {[%emt 0:00:25]} Bd4 {[%emt 0:00:40]} 76. Ne4 {[%emt 0:00:05]} Bg1 {[%emt 0:00:07]} 77. Nc5 {[%emt 0:00:32]} Bxc5 {[%emt 0:00:36]} 78. Kxc5 {[%emt 0:00:05]} Kc7 {[%emt 0:00:24]} 79. b6+ {[%emt 0:00:04]} Kb7 {[%emt 0:00:02]} 80. Kb5 {[%emt 0:00:06]} Kb8 {[%emt 0:00:04]} 81. Ka6 {[%emt 0:00:03]} Ka8 {[%emt 0:00:06]} 82. b7+ {[%emt 0:00:03]} Kb8 {[%emt 0:00:02]} 83. Kb6 {[%emt 0:00:06]} 1/2-1/2

[Event "Krakow Championship-B 2022"]
[Site "Krakow"]
[Date "2022.07.01"]
[Round "8.6"]
[White "Palacki, Rafal"]
[Black "Zamekhovskiy, Yevgen"]
[Result "1/2-1/2"]
[ECO "B10"]
[WhiteElo "1810"]
[BlackElo "1926"]
[Annotator "RC"]
[PlyCount "141"]
[EventDate "2022.06.25"]
[EventType "swiss"]
[EventCountry "POL"]
[SourceTitle "playchess.com"]
[Source "ChessBase"]
[SourceQuality "1"]
[TimeControl "40/5400+30:1800+30"]

1. e4 {[%emt 0:00:04]} c6 {[%emt 0:00:05]} 2. Nf3 {[%emt 0:00:10]} d5 {[%emt 0:00:07]} 3. d3 {[%emt 0:00:04]} Bg4 {[%emt 0:01:09]} 4. h3 {[%emt 0:00:12]} Bh5 {[%emt 0:02:15]} 5. Nbd2 {[%emt 0:01:58]} Nd7 {[%emt 0:00:34]} 6. exd5 {[%emt 0:02:17]} cxd5 {[%emt 0:00:19]} 7. g3 {[%emt 0:00:33]} e5 {[%emt 0:03:31]} 8. Bg2 {[%emt 0:06:22]} Bd6 {[%emt 0:03:32]} 9. O-O {[%emt 0:05:08]} Ne7 {[%emt 0:12:55]} 10. c4 {[%emt 0:20:40]} O-O {[%emt 0:11:36]} 11. cxd5 {[%emt 0:02:23]} Nxd5 {[%emt 0:01:19]} 12. Ne4 {[%emt 0:03:07]} N7b6 {[%emt 0:06:42]} 13. Qb3 {[%emt 0:06:15]} h6 {[%emt 0:04:19]} 14. a4 {[%emt 0:06:28]} a5 {[%emt 0:03:50]} 15. Nc3 {[%emt 0:04:16]} Nb4 {[%emt 0:06:19]} 16. Be3 {[%emt 0:01:46]} Kh8 {[%emt 0:06:02]} 17. Nb5 {[%emt 0:14:54]} N6d5 {[%emt 0:01:08]} 18. Bd2 {[%emt 0:03:34]} f6 {[%emt 0:10:34]} 19. Bxb4 {[%emt 0:06:52]} Nxb4 {[%emt 0:00:59]} 20. Nd2 {[%emt 0:00:42]} Qd7 {[%emt 0:07:17]} 21. Ne4 {[%emt 0:04:37]} Be7 {[%emt 0:00:50]} 22. Rac1 {[%emt 0:03:24]} Rac8 {[%emt 0:00:37]} 23. Na7 {[%emt 0:02:17]} Bf7 {[%emt 0:02:19]} 24. Qd1 {[%emt 0:00:55]} Rxc1 {[%emt 0:00:19]} 25. Qxc1 {[%emt 0:00:02]} Nxd3 {[%emt 0:02:42]} 26. Qb1 {[%emt 0:01:27]} f5 {[%emt 0:00:56]} 27. Nc3 {[%emt 0:00:10]} Bc5 {[%emt 0:01:57]} 28. Nab5 {[%emt 0:00:11]} e4 {[%emt 0:00:15]} 29. Ne2 {[%emt 0:02:11]} Bb3 {[%emt 0:01:53]} 30. Nbc3 {[%emt 0:00:32]} b6 {[%emt 0:02:50]} 31. Nc1 {[%emt 0:00:28]} Nxc1 {[%emt 0:01:35]} 32. Qxc1 {[%emt 0:00:21]} Qd3 {[%emt 0:01:03]} 33. Kh2 {[%emt 0:00:45]} Qc4 {[%emt 0:00:34]} 34. Qf4 {[%emt 0:00:33]} Qe6 {[%emt 0:01:20]} 35. Re1 {[%emt 0:00:48]} Qg6 {[%emt 0:01:48]} 36. Qd2 {[%emt 0:00:45]} Qf6 {[%emt 0:00:44]} 37. Qe2 {[%emt 0:00:52]} Rd8 {[%emt 0:00:19]} 38. Qb5 {[%emt 0:00:25]} Bc2 {[%emt 0:00:18]} 39. Qe2 {[%emt 0:00:41]} Bd3 {[%emt 0:00:05]} 40. Qd2 {[%emt 0:00:29]} Qd4 {[%emt 0:00:28]} 41. Kg1 {[%emt 0:30:41]} Rf8 {[%emt 0:07:08]} 42. Rd1 {[%emt 0:00:00]} Re8 {[%emt 0:04:16]} 43. Bf1 {[%emt 0:00:00]} Qe5 {[%emt 0:01:54]} 44. Kg2 {[%emt 0:00:00]} Bxf1+ {[%emt 0:07:31]} 45. Rxf1 {[%emt 0:00:00]} Kg8 {[%emt 0:01:41]} 46. Re1 {[%emt 0:00:00]} Kf7 {[%emt 0:01:26]} 47. h4 {[%emt 0:00:00]} Re7 {[%emt 0:02:08]} 48. Qd1 {[%emt 0:00:00]} g6 {[%emt 0:02:34]} 49. Qb3+ {[%emt 0:00:00]} Qe6 {[%emt 0:01:02]} 50. Qd1 {[%emt 0:00:00]} Rd7 {[%emt 0:00:22]} 51. Qe2 {[%emt 0:00:00]} Bb4 {[%emt 0:01:06]} 52. Qe3 {[%emt 0:00:00]} Kg7 {[%emt 0:00:37]} 53. Rc1 {[%emt 0:00:00]} Rd3 {[%emt 0:00:28]} 54. Qe2 {[%emt 0:01:31]} Qc4 {[%emt 0:01:50]} 55. Kh2 {[%emt 0:02:11]} Bxc3 {[%emt 0:01:40]} 56. bxc3 {[%emt 0:00:02]} Qxa4 {[%emt 0:00:27]} 57. Qb2 {[%emt 0:00:33]} Qc6 {[%emt 0:01:21]} 58. c4+ {[%emt 0:00:09]} Kh7 {[%emt 0:01:16]} 59. Qe5 {[%emt 0:01:43]} Qd6 {[%emt 0:00:12]} 60. Qe8 {[%emt 0:00:30]} Qd7 {[%emt 0:00:36]} 61. Qf8 {[%emt 0:01:00]} e3 {[%emt 0:00:56]} 62. Re1 {[%emt 0:01:22]} Qg7 {[%emt 0:00:08]} 63. Qxg7+ {[%emt 0:00:50]} Kxg7 {[%emt 0:00:03]} 64. fxe3 {[%emt 0:00:04]} Kf6 {[%emt 0:00:51]} 65. Rb1 {[%emt 0:00:10]} Rxe3 {[%emt 0:00:36]} 66. Rxb6+ {[%emt 0:00:04]} Re6 {[%emt 0:00:02]} 67. c5 {[%emt 0:00:49]} Ke5 {[%emt 0:01:30]} 68. c6 {[%emt 0:00:20]} Re7 {[%emt 0:00:19]} 69. Ra6 {[%emt 0:00:47]} Kd6 {[%emt 0:00:15]} 70. Rxa5 {[%emt 0:00:42]} Rc7 {[%emt 0:00:03]} 71. h5 {[%emt 0:00:12]} 1/2-1/2